bitfinex-derivatives/quotes_BTCF0:USTF0_20240925
["timestamp","ask_amount","ask_price","bid_price","bid_amount"]
[1727295734657,0.202955,63330.0,63329.0,0.01088]
[1727295734857,0.202955,63330.0,63329.0,0.00988]
[1727295735053,0.202955,63330.0,63329.0,0.01088]
[1727295738156,0.082955,63330.0,63329.0,0.089836]
[1727295738354,0.202955,63330.0,63329.0,0.089836]
[1727295740655,0.24162901,63330.0,63329.0,0.089836]
[1727295742955,0.202955,63330.0,63329.0,0.089836]
[1727295743347,0.24162814,63330.0,63329.0,0.089836]
[1727295743551,0.24162814,63330.0,63329.0,0.080956]
[1727295745950,0.202955,63330.0,63329.0,0.080956]
[1727295749647,0.202955,63330.0,63329.0,0.12820814]
[1727295751158,0.202955,63330.0,63329.0,0.080956]
[1727295753957,0.29010543,63330.0,63329.0,0.080956]
[1727295754859,0.290105,63330.0,63329.0,0.080956]
[1727295757858,0.290105,63330.0,63329.0,0.089836]
[1727295761059,0.202955,63330.0,63329.0,0.15297539]
[1727295765769,0.082955,63330.0,63329.0,0.15297539]
[1727295766269,0.004,63330.0,63329.0,0.15297539]
[1727295767765,0.004,63330.0,63329.0,0.23193139]
[1727295767972,0.004,63330.0,63329.0,0.288792]
[1727295768366,0.004,63330.0,63329.0,0.649592]
[1727295768566,0.004,63330.0,63329.0,1.83465664]
[1727295768870,0.0074,63337.0,63336.0,0.078947]
[1727295769058,0.198943,63340.0,63339.0,0.078944]
[1727295769454,0.3608,63341.0,63340.0,0.078943]
[1727295770068,0.3608,63341.0,63340.0,0.198943]
[1727295770263,0.02913524,63344.0,63343.0,0.078939]
[1727295770565,0.3608,63348.0,63347.0,0.078934]
[1727295772768,0.3608,63348.0,63347.0,0.079934]
[1727295772769,0.439733,63348.0,63347.0,0.079934]
[1727295773163,0.439733,63348.0,63347.0,0.080934]
[1727295774569,0.4681998,63348.0,63347.0,0.080934]
[1727295776172,0.55532726,63348.0,63347.0,0.080934]
[1727295780477,0.55532727,63348.0,63347.0,0.080934]
[1727295784170,0.4681998,63348.0,63347.0,0.080934]
[1727295784971,0.3892668,63348.0,63347.0,0.200934]
[1727295785169,0.07893,63351.0,63350.0,0.07893]
[1727295785365,0.11022501,63354.0,63353.0,0.078925]
[1727295785366,0.078925,63354.0,63353.0,0.078925]
[1727295785676,0.078925,63354.0,63353.0,0.198925]
[1727295786467,0.079925,63354.0,63353.0,0.199925]
[1727295788080,0.079925,63354.0,63353.0,0.200925]
[1727295788663,0.10796869,63354.0,63353.0,0.200925]
[1727295789667,0.10796869,63354.0,63353.0,0.080925]
[1727295790677,0.22796869,63354.0,63353.0,0.080925]
[1727295791175,0.31508558,63354.0,63353.0,0.080925]
[1727295797479,0.19508558,63354.0,63353.0,0.080925]
[1727295798476,0.0881167,63354.0,63353.0,0.200925]
[1727295798779,0.0881167,63354.0,63353.0,0.279851]
[1727295799175,0.001,63354.0,63353.0,0.279851]
[1727295813184,0.001,63354.0,63353.0,0.200925]
[1727295814192,0.08810707,63354.0,63353.0,0.200925]
[1727295815985,0.078923,63356.0,63355.0,0.078923]
[1727295816181,0.198923,63356.0,63355.0,0.078923]
[1727295816589,0.229523,63356.0,63355.0,0.078923]
[1727295817282,0.229523,63356.0,63355.0,0.080923]
[1727295817283,0.230523,63356.0,63355.0,0.080923]
[1727295820985,0.27897733,63356.0,63355.0,0.080923]
[1727295821184,0.230523,63356.0,63355.0,0.080923]
[1727295823599,0.110523,63356.0,63355.0,0.080923]
[1727295829296,0.19763465,63356.0,63355.0,0.080923]
[1727295830501,0.37129349,63356.0,63355.0,0.080923]
[1727295830804,0.19763465,63356.0,63355.0,0.080923]
[1727295832002,0.37129734,63356.0,63355.0,0.080923]
[1727295833188,0.37129717,63356.0,63355.0,0.080923]
[1727295833396,0.19763448,63356.0,63355.0,0.080923]
[1727295836304,0.110523,63356.0,63355.0,0.080923]
[1727295840800,0.0316,63356.0,63355.0,0.080923]
[1727295844293,0.07025726,63356.0,63355.0,0.080923]
[1727295844607,0.11871152,63356.0,63355.0,0.080923]
[1727295846503,0.08811152,63356.0,63355.0,0.599571]
[1727295846907,0.0074,63364.0,63363.0,0.157828]
[1727295847205,0.0074,63371.0,63370.0,0.078905]
[1727295847410,0.0328,63373.0,63368.0,0.12]
[1727295847706,0.0328,63373.0,63372.0,0.12]
[1727295847902,0.0328,63373.0,63372.0,0.198903]
[1727295848908,0.0328,63373.0,63372.0,0.200903]
[1727295849097,0.06164091,63373.0,63372.0,0.200903]
[1727295850294,0.06164091,63373.0,63372.0,0.199903]
[1727295850499,0.06164091,63373.0,63372.0,0.200903]
[1727295851611,0.02884091,63373.0,63372.0,0.200903]
[1727295851910,0.11027905,63378.0,63377.0,0.078896]
[1727295852107,0.02908673,63380.0,63379.0,0.12]
[1727295852310,0.11026392,63381.0,63379.0,0.078894]
[1727295852500,0.23026392,63381.0,63380.0,0.078893]
[1727295852907,0.198891,63381.0,63380.0,0.078893]
[1727295853110,0.078898,63377.0,63376.0,0.078897]
[1727295853319,0.198898,63377.0,63376.0,0.078897]
[1727295854907,0.198898,63377.0,63376.0,0.079897]
[1727295855306,0.198898,63377.0,63376.0,0.080897]
[1727295859409,0.28598241,63377.0,63376.0,0.080897]
[1727295861013,0.28598241,63377.0,63376.0,0.002]
[1727295863118,0.28598241,63377.0,63376.0,0.080898]
[1727295863317,0.28598241,63377.0,63376.0,0.002]
[1727295865519,0.28598241,63377.0,63376.0,0.00126433]
[1727295865520,0.36488041,63377.0,63376.0,0.00126433]
[1727295866018,1.86488643,63377.0,63376.0,0.00126433]
[1727295866315,0.078908,63368.0,63367.0,0.082608]
[1727295866618,0.198908,63368.0,63367.0,0.078908]
[1727295867609,0.198908,63368.0,63367.0,0.079908]
[1727295868819,0.198908,63368.0,63367.0,0.080908]
[1727295871014,0.12,63368.0,63367.0,0.080908]
[1727295871225,0.11018834,63371.0,63370.0,0.078905]
[1727295871522,0.11018834,63371.0,63370.0,0.12]
[1727295871523,0.11021174,63371.0,63370.0,0.12]
[1727295872223,0.11021174,63371.0,63370.0,0.198905]
[1727295872911,0.03964731,63371.0,63370.0,0.200905]
[1727295873111,0.11123464,63371.0,63370.0,0.200905]
[1727295873310,0.03964689,63371.0,63370.0,0.200905]
[1727295874426,0.001,63371.0,63370.0,0.200905]
[1727295877026,0.001,63371.0,63370.0,0.27981]
[1727295879331,0.001,63371.0,63370.0,0.200905]
[1727295880128,0.001,63371.0,63370.0,0.080905]
[1727295881727,0.08808643,63371.0,63370.0,0.080905]
[1727295884621,0.08808643,63371.0,63370.0,0.089785]
[1727295889428,0.001,63371.0,63370.0,0.089785]
[1727295893833,0.001,63371.0,63370.0,0.209785]
[1727295895035,0.001,63371.0,63370.0,0.570585]
[1727295896126,0.001,63371.0,63370.0,0.209785]
[1727295896330,0.001,63371.0,63370.0,0.570585]
[1727295900441,0.001,63371.0,63370.0,0.450585]
[1727295901942,0.001,63371.0,63370.0,0.441705]
[1727295904039,0.08808721,63371.0,63370.0,0.441705]
[1727295906028,0.24596489,63371.0,63370.0,0.441705]
[1727295906636,0.08808721,63371.0,63370.0,0.441705]
[1727295908736,0.17405603,63371.0,63370.0,0.441705]
[1727295908947,0.21270251,63371.0,63370.0,0.441705]
[1727295909245,0.21270248,63371.0,63370.0,0.441705]
[1727295909547,0.26114322,63371.0,63370.0,0.441705]
[1727295910334,0.08808719,63371.0,63370.0,0.441705]
[1727295911539,0.17405603,63371.0,63370.0,0.441705]
[1727295911746,0.001,63371.0,63370.0,0.441705]
[1727295912938,0.001,63371.0,63370.0,0.080905]
[1727295914243,0.079904,63371.0,63370.0,0.080905]
[1727295915745,0.079904,63371.0,63370.0,0.089785]
[1727295931962,0.278808,63371.0,63370.0,0.01088]
[1727295932468,0.278808,63371.0,63370.0,0.002]
[1727295933764,0.36590678,63371.0,63370.0,0.002]
[1727295935158,0.36590665,63371.0,63370.0,0.002]
[1727295937657,0.31745955,63371.0,63370.0,0.002]
[1727295937862,1.28149973,63371.0,63364.0,0.00236726]
[1727295938157,1.28149973,63371.0,63345.0,0.05155228]
[1727295938158,0.078925,63354.0,63346.0,0.0037]
[1727295938368,0.3645,63358.0,63355.0,0.078923]
[1727295938660,0.12,63356.0,63355.0,0.078923]
[1727295938859,0.15865704,63356.0,63355.0,0.078923]
[1727295939263,0.23758004,63356.0,63355.0,0.078923]
[1727295939449,0.198923,63356.0,63355.0,0.078923]
[1727295939975,0.078923,63356.0,63355.0,0.080923]
[1727295940552,0.078923,63356.0,63355.0,0.082923]
[1727295941763,0.078923,63356.0,63355.0,0.13017528]
[1727295942358,0.078923,63356.0,63355.0,0.082923]
[1727295943762,0.4816,63358.0,63357.0,0.078921]
[1727295943965,0.4808,63358.0,63357.0,0.078921]
[1727295945063,0.50909749,63358.0,63357.0,0.078921]
[1727295952257,0.38909749,63358.0,63357.0,0.078921]
[1727295952469,0.14829749,63358.0,63357.0,0.078921]
[1727295952657,0.12,63358.0,63357.0,0.078921]
[1727295953259,0.12,63358.0,63357.0,0.157842]
[1727295955765,0.12,63358.0,63357.0,0.078921]
[1727295956772,0.20711185,63358.0,63357.0,0.078921]
[1727295957375,0.36500354,63358.0,63357.0,0.078921]
[1727295958074,0.36500162,63358.0,63357.0,0.078921]
[1727295958283,0.36500176,63358.0,63357.0,0.078921]
[1727295958567,0.20711007,63358.0,63357.0,0.078921]
[1727295959459,0.08711007,63358.0,63357.0,0.078921]
[1727295959664,0.078919,63359.0,63358.0,0.07892]
[1727295959869,0.166031,63359.0,63358.0,0.07892]
[1727295961264,0.527831,63359.0,63358.0,0.07892]
[1727295961465,0.68537102,63359.0,63358.0,0.07892]
[1727295961669,0.80537102,63359.0,63358.0,0.07892]
[1727295961863,0.64883127,63359.0,63358.0,0.07892]
[1727295962269,0.80637102,63359.0,63358.0,0.07892]
[1727295963569,0.80637102,63359.0,63355.0,0.078923]
[1727295963570,0.078923,63356.0,63355.0,0.078923]
[1727295963772,0.28603521,63356.0,63355.0,0.078923]
[1727295963974,0.198923,63356.0,63355.0,0.078923]
[1727295964379,0.198923,63356.0,63346.0,0.19118728]
[1727295964380,0.078928,63352.0,63346.0,0.11225228]
[1727295964678,0.078928,63352.0,63351.0,0.078929]
[1727295964880,0.198928,63352.0,63351.0,0.078929]
[1727295966171,0.198928,63352.0,63351.0,0.090929]
[1727295967379,0.12,63352.0,63351.0,0.090929]
[1727295971782,0.28481615,63352.0,63351.0,0.090929]
[1727295974381,0.1586598,63352.0,63351.0,0.090929]
[1727295978079,0.2375878,63352.0,63351.0,0.090929]
[1727295978991,0.198928,63352.0,63351.0,0.15393195]
[1727295979792,0.12,63352.0,63351.0,0.15393195]
[1727295981191,0.198928,63352.0,63351.0,0.15393195]
[1727295981591,0.198928,63352.0,63351.0,0.05922086]
[1727295981592,0.157856,63352.0,63351.0,0.05922086]
[1727295981781,0.307956,63352.0,63351.0,0.012]
[1727295982587,0.307956,63352.0,63351.0,0.006]
[1727295982789,0.307956,63352.0,63351.0,0.009]
[1727295983498,0.309956,63352.0,63351.0,0.007]
[1727295983692,0.309956,63352.0,63351.0,0.004]
[1727295984400,0.310956,63352.0,63351.0,0.002]
[1727295985096,0.310956,63352.0,63344.0,0.04722086]
[1727295985097,0.078936,63345.0,63344.0,0.04722086]
[1727295985301,0.078938,63344.0,63340.0,0.04722854]
[1727295985597,0.078945,63338.0,63337.0,0.04722854]
[1727295985804,0.078945,63338.0,63336.0,0.12617554]
[1727295985805,0.439745,63338.0,63336.0,0.12617554]
[1727295986097,0.12,63337.0,63336.0,0.078947]
[1727295986288,0.12,63337.0,63336.0,0.12617554]
[1727295986892,0.440665,63338.0,63337.0,0.078946]
[1727295987102,0.560665,63338.0,63337.0,0.078946]
[1727295987286,0.559745,63338.0,63337.0,0.078946]
[1727295988293,0.560745,63338.0,63337.0,0.078946]
[1727295989295,0.200945,63338.0,63337.0,0.078946]
[1727295989997,0.199945,63338.0,63337.0,0.078946]
[1727295990203,0.203945,63338.0,63337.0,0.079946]
[1727295990591,0.202945,63338.0,63337.0,0.079946]
[1727295990787,0.203945,63338.0,63337.0,0.079946]
[1727295991303,0.204945,63338.0,63337.0,0.080946]
[1727295991498,0.084945,63338.0,63337.0,0.080946]
[1727295991804,0.204945,63338.0,63337.0,0.080946]
[1727295992096,0.23348001,63338.0,63337.0,0.080946]
[1727295994194,0.11348001,63338.0,63337.0,0.002]
[1727295994597,0.23348001,63338.0,63337.0,0.002]
[1727295999399,0.59428001,63338.0,63337.0,0.002]
[1727296003914,0.47428001,63338.0,63337.0,0.002]
[1727296004212,0.59428001,63338.0,63337.0,0.002]
[1727296005014,0.47428001,63338.0,63337.0,0.002]
[1727296005204,0.59428001,63338.0,63337.0,0.002]
[1727296005613,0.23348001,63338.0,63337.0,0.002]
[1727296005807,0.59428001,63338.0,63337.0,0.002]
[1727296006910,0.03453501,63338.0,63337.0,0.080946]
[1727296007104,0.006,63338.0,63337.0,0.238838]
[1727296007415,0.0037,63343.0,63342.0,0.15788]
[1727296007616,0.0037,63348.0,63342.0,0.55974]
[1727296007922,0.0037,63348.0,63347.0,0.12606595]
[1727296008214,0.02818828,63349.0,63348.0,0.078933]
[1727296008420,0.02818828,63349.0,63347.0,0.04713195]
[1727296008421,0.48168,63350.0,63349.0,0.078931]
[1727296008609,0.4808,63350.0,63349.0,0.078931]
[1727296008808,0.51946147,63350.0,63349.0,0.078931]
[1727296010212,0.51946077,63350.0,63349.0,0.078931]
[1727296010604,0.51946077,63350.0,63349.0,0.079931]
[1727296011009,0.39946077,63350.0,63349.0,0.079931]
[1727296011312,0.39946077,63350.0,63349.0,0.080931]
[1727296012024,0.47839077,63350.0,63349.0,0.002]
[1727296012227,0.47839077,63350.0,63349.0,0.001]
[1727296012407,0.52685354,63350.0,63349.0,0.001]
[1727296012610,0.078933,63348.0,63338.0,0.0664]
[1727296012918,0.12,63339.0,63338.0,0.0627]
[1727296013322,0.12,63339.0,63338.0,0.141645]
[1727296014811,0.12,63339.0,63338.0,0.109545]
[1727296018026,0.444238,63344.0,63343.0,0.078939]
[1727296018224,0.559738,63344.0,63343.0,0.078939]
[1727296020524,0.198938,63344.0,63343.0,0.078939]
[1727296020723,0.12,63344.0,63343.0,0.078939]
[1727296020918,0.4808,63344.0,63343.0,0.078939]
[1727296024021,0.51946609,63344.0,63343.0,0.078939]
[1727296025831,0.15866609,63344.0,63343.0,0.078939]
[1727296026031,0.51946609,63344.0,63343.0,0.078939]
[1727296027133,0.4808,63344.0,63343.0,0.078939]
[1727296030731,0.12,63344.0,63343.0,0.078939]
[1727296032027,0.4269,63347.0,63346.0,0.078935]
[1727296032229,0.02822319,63350.0,63349.0,0.157862]
[1727296032431,0.12,63354.0,63353.0,0.078926]
[1727296033131,0.14850025,63354.0,63353.0,0.078926]
[1727296034034,0.14850025,63354.0,63353.0,0.079926]
[1727296034231,0.14850025,63354.0,63353.0,0.080926]
[1727296035635,0.14850025,63354.0,63353.0,0.079926]
[1727296035827,0.14850025,63354.0,63353.0,0.080926]
[1727296036232,0.14850025,63354.0,63353.0,0.079926]
[1727296036430,0.14850025,63354.0,63353.0,0.080926]
[1727296041946,0.14850025,63354.0,63353.0,0.089806]
[1727296047140,0.40867446,63354.0,63353.0,0.089806]
[1727296047547,0.23561843,63354.0,63353.0,0.089806]
[1727296047848,0.23561852,63354.0,63353.0,0.089806]
[1727296052741,0.23561843,63354.0,63353.0,0.089806]
[1727296054251,0.14850025,63354.0,63353.0,0.089806]
[1727296058044,0.22742525,63354.0,63353.0,0.080926]
[1727296061657,0.30635025,63354.0,63353.0,0.002]
[1727296061842,0.25842525,63354.0,63350.0,0.078929]
[1727296062044,0.12,63351.0,63350.0,0.078929]
[1727296062247,0.20712363,63351.0,63350.0,0.078929]
[1727296062453,0.38017966,63351.0,63350.0,0.078929]
[1727296062654,0.28605263,63351.0,63350.0,0.078929]
[1727296063157,0.28605263,63351.0,63350.0,0.079929]
[1727296064258,0.28605263,63351.0,63350.0,0.080929]
[1727296064650,0.64685263,63351.0,63350.0,0.080929]
[1727296065453,0.64785263,63351.0,63350.0,0.002]
[1727296066251,0.078936,63346.0,63344.0,0.078936]
[1727296066455,0.4808,63345.0,63344.0,0.078936]
[1727296066656,0.56792363,63345.0,63344.0,0.078936]
[1727296067764,0.56792951,63345.0,63344.0,0.078936]
[1727296068471,0.56892951,63345.0,63344.0,0.078936]
[1727296069162,0.121,63345.0,63344.0,0.078936]
[1727296071560,0.14920288,63345.0,63344.0,0.078936]
[1727296072071,0.14920288,63345.0,63344.0,0.14191607]
[1727296072367,0.14920288,63345.0,63344.0,0.15079607]
[1727296073070,0.51000288,63345.0,63344.0,0.15079607]
[1727296076763,0.14920288,63345.0,63344.0,0.087816]
[1727296077155,0.14920288,63345.0,63344.0,0.15077558]
[1727296078171,0.14920288,63345.0,63344.0,0.087816]
[1727296078864,0.14920288,63345.0,63344.0,0.15077558]
[1727296080874,0.001,63345.0,63344.0,0.15077558]
[1727296083171,0.001,63345.0,63344.0,0.087816]
[1727296083677,0.121,63345.0,63344.0,0.087816]
[1727296084076,0.15966404,63345.0,63344.0,0.087816]
[1727296084473,0.2081269,63345.0,63344.0,0.087816]
[1727296084863,0.15966404,63345.0,63344.0,0.087816]
[1727296087369,0.15966404,63345.0,63344.0,0.12018571]
[1727296088970,0.20812719,63345.0,63344.0,0.12018571]
[1727296089671,0.28706319,63345.0,63344.0,0.11130571]
[1727296091080,0.42913109,63345.0,63344.0,0.11130571]
[1727296092077,0.199936,63345.0,63344.0,0.17427498]
[1727296095167,0.232636,63345.0,63344.0,0.17427498]
[1727296095878,0.232636,63345.0,63344.0,0.11130571]
[1727296096079,0.232636,63345.0,63344.0,0.17427498]
[1727296099176,0.47767246,63345.0,63344.0,0.11130571]
[1727296099879,0.27130081,63345.0,63344.0,0.11130571]
[1727296102381,0.39764923,63345.0,63344.0,0.11130571]
[1727296103070,0.27130081,63345.0,63344.0,0.11130571]
[1727296103266,0.39764923,63345.0,63344.0,0.11130571]
[1727296104081,0.39764923,63345.0,63344.0,0.12018571]
[1727296104469,0.27130081,63345.0,63344.0,0.12018571]
[1727296104875,0.39764923,63345.0,63344.0,0.12018571]
[1727296105276,0.27130081,63345.0,63344.0,0.12018571]
[1727296105482,0.3976486,63345.0,63344.0,0.12018571]
[1727296106685,0.27130018,63345.0,63344.0,0.12018571]
[1727296107081,0.232636,63345.0,63344.0,0.12018571]
[1727296114393,0.46190783,63345.0,63344.0,0.12018571]
[1727296115282,0.46190782,63345.0,63344.0,0.12018571]
[1727296115883,0.31976399,63345.0,63344.0,0.12018571]
[1727296121385,0.31976399,63345.0,63344.0,0.11130571]
[1727296122394,0.232636,63345.0,63344.0,0.11130571]
[1727296122591,0.232636,63345.0,63344.0,0.03236971]
[1727296123290,0.311572,63345.0,63344.0,0.03236971]
[1727296128689,0.672372,63345.0,63344.0,0.03236971]
[1727296134008,0.001,63345.0,63344.0,0.11130771]
[1727296135695,0.001,63345.0,63344.0,0.12018771]
[1727296136109,0.001,63345.0,63344.0,0.16744797]
[1727296136295,0.001,63345.0,63344.0,0.12018771]
[1727296136494,0.03966616,63345.0,63344.0,0.12018771]
[1727296137605,0.40046616,63345.0,63344.0,0.12018771]
[1727296138308,0.44893236,63345.0,63344.0,0.12018771]
[1727296138609,0.40046616,63345.0,63344.0,0.12018771]
[1727296138909,0.44893246,63345.0,63344.0,0.12018771]
[1727296139594,0.52786846,63345.0,63344.0,0.12018771]
[1727296139799,0.52786919,63345.0,63344.0,0.12018771]
[1727296142108,0.52786919,63345.0,63344.0,0.04124971]
[1727296142311,0.55786919,63345.0,63344.0,0.04124971]
[1727296143307,0.70004624,63345.0,63344.0,0.04124971]
[1727296143515,0.55786919,63345.0,63344.0,0.04124971]
[1727296143812,0.19706919,63345.0,63344.0,0.04124971]
[1727296143998,0.55786919,63345.0,63344.0,0.04124971]
[1727296144204,0.63684112,63345.0,63337.0,0.0037]
[1727296144407,0.63684112,63345.0,63338.0,0.078945]
[1727296144408,0.078945,63339.0,63338.0,0.078945]
[1727296145711,0.078945,63339.0,63338.0,0.083945]
[1727296146419,0.198945,63339.0,63338.0,0.083945]
[1727296146713,0.198945,63339.0,63338.0,0.088945]
[1727296150211,0.198945,63339.0,63338.0,0.01]
[1727296150212,0.27789,63339.0,63338.0,0.01]
[1727296152113,0.3064734,63339.0,63338.0,0.01]
[1727296155923,0.2275284,63339.0,63338.0,0.01]
[1727296157113,0.1075284,63339.0,63338.0,0.01]
[1727296157308,0.1075284,63339.0,63338.0,0.088945]
[1727296157508,0.2275284,63339.0,63338.0,0.088945]
[1727296159320,0.26619866,63339.0,63338.0,0.088945]
[1727296160315,0.39245504,63339.0,63338.0,0.088945]
[1727296162326,0.26619866,63339.0,63338.0,0.088945]
[1727296162713,0.26619663,63339.0,63338.0,0.088945]
[1727296166318,0.2275284,63339.0,63338.0,0.088945]
[1727296167526,0.2275284,63339.0,63338.0,0.097825]
[1727296174528,0.31466819,63339.0,63338.0,0.097825]
[1727296175529,0.47259581,63339.0,63338.0,0.097825]
[1727296176131,0.31466819,63339.0,63338.0,0.097825]
[1727296176340,0.47260213,63339.0,63338.0,0.097825]
[1727296177335,0.31466819,63339.0,63338.0,0.097825]
[1727296177540,0.47260977,63339.0,63338.0,0.097825]
[1727296178235,0.47261912,63339.0,63338.0,0.01888]
[1727296178421,0.31466819,63339.0,63338.0,0.01888]
[1727296180536,0.26619821,63339.0,63338.0,0.01888]
[1727296181535,0.2275284,63339.0,63338.0,0.01888]
[1727296182227,0.5883284,63339.0,63338.0,0.01888]
[1727296184229,0.5883284,63339.0,63338.0,0.01]
[1727296184937,0.6672734,63339.0,63338.0,0.01]
[1727296186436,0.6672734,63339.0,63338.0,0.006]
[1727296186829,0.6672734,63339.0,63338.0,0.002]
[1727296189543,0.75441675,63339.0,63338.0,0.002]
[1727296190337,0.92812625,63339.0,63338.0,0.002]
[1727296191242,0.84918125,63339.0,63338.0,0.002]
[1727296192440,0.81050962,63339.0,63338.0,0.002]
[1727296192640,0.67547132,63339.0,63338.0,0.002]
[1727296193041,0.84918082,63339.0,63338.0,0.002]
[1727296193639,0.67547132,63339.0,63338.0,0.002]
[1727296195342,0.84918082,63339.0,63338.0,0.080945]
[1727296195539,0.72918082,63339.0,63338.0,0.080945]
[1727296195849,0.67547132,63339.0,63338.0,0.080945]
[1727296196035,0.8491832,63339.0,63338.0,0.080945]
[1727296196648,0.5093834,63339.0,63338.0,0.080945]
[1727296198050,0.5883274,63339.0,63338.0,0.080945]
[1727296198648,0.5883274,63339.0,63338.0,0.089825]
[1727296200241,0.5093834,63339.0,63338.0,0.089825]
[1727296200453,0.0285834,63339.0,63338.0,0.16877]
[1727296200751,0.082636,63346.0,63343.0,0.157878]
[1727296200752,0.0037,63344.0,63343.0,0.157878]
[1727296200942,0.0037,63349.0,63348.0,0.078933]
[1727296201147,0.3608,63353.0,63347.0,0.12]
[1727296201338,0.12,63352.0,63347.0,0.12]
[1727296201743,0.12,63352.0,63351.0,0.078929]
[1727296202553,0.122,63352.0,63351.0,0.078929]
[1727296203244,0.123,63352.0,63351.0,0.080929]
[1727296204651,0.21011924,63352.0,63351.0,0.080929]
[1727296205237,0.35193089,63352.0,63351.0,0.080929]
[1727296207251,0.21011924,63352.0,63351.0,0.080929]
[1727296207760,0.16166069,63352.0,63351.0,0.080929]
[1727296209149,0.04166069,63352.0,63351.0,0.159858]
[1727296209345,0.003,63352.0,63351.0,1.432347]
[1727296209551,0.12965565,63357.0,63356.0,0.078923]
[1727296209856,0.14551165,63361.0,63359.0,0.157838]
[1727296209857,0.12595565,63360.0,63359.0,0.157838]
[1727296210059,0.0037,63361.0,63360.0,0.078918]
[1727296210358,0.15862064,63364.0,63363.0,0.078914]
[1727296210559,0.15862064,63364.0,63363.0,0.559714]
[1727296210560,0.12595565,63364.0,63363.0,0.559714]
[1727296210948,0.16460578,63364.0,63363.0,0.559714]
[1727296211147,0.03865013,63364.0,63363.0,0.559714]
[1727296211451,0.0386502,63364.0,63363.0,0.4808]
[1727296211760,0.1237,63368.0,63363.0,0.4818]
[1727296211955,0.1237,63368.0,63367.0,0.078909]
[1727296212152,0.12,63368.0,63367.0,0.078909]
[1727296213060,0.12,63368.0,63367.0,0.079909]
[1727296214355,0.12,63368.0,63367.0,0.080909]
[1727296215362,0.198908,63368.0,63367.0,0.080909]
[1727296217652,0.12,63368.0,63367.0,0.080909]
[1727296218259,0.38958302,63370.0,63369.0,0.078906]
[1727296218463,0.50958302,63370.0,63369.0,0.078906]
[1727296219466,0.50958302,63370.0,63369.0,0.079906]
[1727296220250,0.50958302,63370.0,63369.0,0.080906]
[1727296222466,0.38958302,63370.0,63369.0,0.080906]
[1727296222761,0.0037,63372.0,63371.0,0.078904]
[1727296222952,0.3608,63378.0,63377.0,0.078896]
[1727296223153,0.3608,63378.0,63377.0,0.198896]
[1727296223154,0.36172,63378.0,63377.0,0.198896]
[1727296223459,0.12,63381.0,63380.0,0.078893]
[1727296223460,0.198892,63381.0,63380.0,0.078893]
[1727296224966,0.198892,63381.0,63380.0,0.079893]
[1727296226461,0.22711211,63381.0,63380.0,0.079893]
[1727296226652,0.31419548,63381.0,63380.0,0.079893]
[1727296226850,0.31419548,63381.0,63380.0,0.080893]
[1727296229857,0.31419548,63381.0,63380.0,0.002]
[1727296231769,0.078898,63376.0,63373.0,0.078901]
[1727296231967,0.12,63374.0,63373.0,0.078901]
[1727296232177,0.20708337,63374.0,63373.0,0.078901]
[1727296233270,0.20708337,63374.0,63373.0,0.079901]
[1727296233471,0.20708337,63374.0,63373.0,0.080901]
[1727296233964,0.20808337,63374.0,63373.0,0.080901]
[1727296234161,0.20908337,63374.0,63373.0,0.080901]
[1727296234361,0.20908479,63374.0,63373.0,0.080901]
[1727296234667,0.122,63374.0,63373.0,0.080901]
[1727296236871,0.121,63374.0,63373.0,0.079901]
[1727296237074,0.122,63374.0,63373.0,0.080901]
[1727296237673,0.121,63374.0,63373.0,0.079901]
[1727296237873,0.122,63374.0,63373.0,0.080901]
[1727296239086,0.002,63374.0,63373.0,0.080901]
[1727296239377,0.122,63374.0,63373.0,0.080901]
[1727296240867,0.122,63374.0,63373.0,0.079901]
[1727296241075,0.122,63374.0,63373.0,0.080901]
[1727296241274,0.15021434,63374.0,63373.0,0.080901]
[1727296241471,0.02921434,63374.0,63373.0,0.079901]
[1727296241678,0.03021434,63374.0,63373.0,0.080901]
[1727296242070,0.03021434,63374.0,63373.0,0.112101]
[1727296244181,0.02921434,63374.0,63373.0,0.111101]
[1727296244378,0.02921434,63374.0,63373.0,0.112101]
[1727296244379,0.03021434,63374.0,63373.0,0.112101]
[1727296245784,0.02921434,63374.0,63373.0,0.111101]
[1727296246078,0.03021434,63374.0,63373.0,0.111101]
[1727296246673,0.02921434,63374.0,63373.0,0.110101]
[1727296246879,0.03021434,63374.0,63373.0,0.110101]
[1727296249180,0.11729471,63374.0,63373.0,0.110101]
[1727296249979,3.14229471,63374.0,63373.0,0.110101]
[1727296250379,3.28381156,63374.0,63373.0,0.110101]
[1727296250581,3.14229471,63374.0,63373.0,0.110101]
[1727296251090,3.14229471,63374.0,63373.0,0.078901]
[1727296255204,3.30013594,63374.0,63373.0,0.078901]
[1727296255810,3.30013594,63374.0,63373.0,0.157802]
[1727296255811,3.28434957,63374.0,63373.0,0.157802]
[1727296257199,3.09385778,63374.0,63373.0,0.157802]
[1727296258307,3.09385778,63374.0,63373.0,0.518602]
[1727296259816,3.09385778,63374.0,63373.0,0.439701]
[1727296260701,3.09385778,63374.0,63373.0,0.448581]
[1727296264312,3.05521434,63374.0,63373.0,0.448581]
[1727296264504,3.05521434,63374.0,63373.0,0.5271431]
[1727296265610,3.05521434,63374.0,63373.0,0.6391071]
[1727296267210,3.05521434,63374.0,63373.0,0.5271431]
[1727296271417,3.05521434,63374.0,63373.0,0.1663431]
[1727296271618,3.05521434,63374.0,63373.0,0.5271431]
[1727296272026,3.05521434,63374.0,63373.0,0.63912506]
[1727296272214,3.05521434,63374.0,63373.0,0.5271431]
[1727296272916,3.05521434,63374.0,63373.0,0.27832818]
[1727296273117,3.05521434,63374.0,63373.0,0.63912818]
[1727296273818,3.05521434,63374.0,63373.0,0.71802918]
[1727296274214,3.05521434,63374.0,63373.0,0.71801842]
[1727296275323,3.05521434,63374.0,63373.0,0.63945632]